[Event "Titled Tuesday Blitz May 30 Early 2023"]
[White "KVAIDAN"]
[Black "Acikel, Mert"]
[BlackFideId "12956465"]
[WhiteElo "2314"]
[BlackElo "2097"]
[Result "0-1"]
[Round "07"]
[TimeControl "180+2"]
[Date "2023.05.30"]
[WhiteClock "0:00:15"]
[BlackClock "0:00:16"]

1. b3 {[%clk 0:00:59]}  d5 {[%clk 0:02:58]} 2. Bb2 {[%clk 0:00:58]}  Bf5 {[%clk 0:02:57]} 3. e3 {[%clk 0:00:59]}  Nf6 {[%clk 0:02:56]} 4. Nf3 {[%clk 0:00:59]}  e6 {[%clk 0:02:56]} 5. Be2 {[%clk 0:00:59]}  h6 {[%clk 0:02:56]} 6. O-O {[%clk 0:00:59]}  Be7 {[%clk 0:02:55]} 7. Ne5 {[%clk 0:00:57]}  O-O {[%clk 0:02:51]} 8. f4 {[%clk 0:00:46]}  c5 {[%clk 0:02:45]} 9. Qe1 {[%clk 0:00:33]}  d4 {[%clk 0:02:35]} 10. d3 {[%clk 0:00:34]}  dxe3 {[%clk 0:02:32]} 11. Qg3 {[%clk 0:00:29]}  Nbd7 {[%clk 0:02:20]} 12. Nc3 {[%clk 0:00:30]}  Nxe5 {[%clk 0:02:15]} 13. fxe5 {[%clk 0:00:30]}  Nd5 {[%clk 0:02:15]} 14. Nxd5 {[%clk 0:00:30]}  Qxd5 {[%clk 0:02:12]} 15. Qxe3 {[%clk 0:00:30]}  Rac8 {[%clk 0:01:51]} 16. Bf3 {[%clk 0:00:31]}  Qd7 {[%clk 0:01:50]} 17. Rae1 {[%clk 0:00:30]}  b5 {[%clk 0:01:44]} 18. Be4 {[%clk 0:00:31]}  Bxe4 {[%clk 0:01:42]} 19. Qxe4 {[%clk 0:00:31]}  c4 {[%clk 0:01:38]} 20. Rf3 {[%clk 0:00:32]}  cxb3 {[%clk 0:01:33]} 21. cxb3 {[%clk 0:00:31]}  Rc2 {[%clk 0:01:31]} 22. Bd4 {[%clk 0:00:31]}  Rd8 {[%clk 0:01:27]} 23. Bf2 {[%clk 0:00:28]}  Qd5 {[%clk 0:01:20]} 24. Qg4 {[%clk 0:00:27]}  Rxa2 {[%clk 0:01:11]} 25. Rg3 {[%clk 0:00:26]}  Bf8 {[%clk 0:01:09]} 26. Be3 {[%clk 0:00:24]}  Qxe5 {[%clk 0:00:56]} 27. Rf1 {[%clk 0:00:24]}  Rxd3 {[%clk 0:00:48]} 28. Bf4 {[%clk 0:00:22]}  Rxg3 {[%clk 0:00:40]} 29. Qxg3 {[%clk 0:00:21]}  Qd4+ {[%clk 0:00:34]} 30. Kh1 {[%clk 0:00:22]}  Ra1 {[%clk 0:00:29]} 31. Bc1 {[%clk 0:00:20]}  Ba3 {[%clk 0:00:24]} 32. Qf3 {[%clk 0:00:20]}  f6 {[%clk 0:00:19]} 33. Bxa3 {[%clk 0:00:18]}  Rxa3 {[%clk 0:00:18]} 34. Qa8+ {[%clk 0:00:18]}  Kh7 {[%clk 0:00:17]} 35. Qd8 {[%clk 0:00:18]}  Qxd8 {[%clk 0:00:16]} 36. h3 {[%clk 0:00:15]}  Rxb3 {[%clk 0:00:16]} 0-1


[Site "https://www.chess.com"]

[Event "Titled Tuesday Blitz May 30 Early 2023"]
[White "Mikhaylova, Irina"]
[Black "Cramling Bellon, Anna"]
[WhiteFideId "4109040"]
[BlackFideId "32009232"]
[WhiteElo "1975"]
[BlackElo "1976"]
[Result "0-1"]
[Round "07"]
[TimeControl "180+2"]
[Date "2023.05.30"]
[WhiteClock "0:00:15"]
[BlackClock "0:00:09"]

1. Nf3 {[%clk 0:03:00]}  c5 {[%clk 0:02:59]} 2. c4 {[%clk 0:03:01]}  Nc6 {[%clk 0:02:59]} 3. Nc3 {[%clk 0:03:01]}  e5 {[%clk 0:02:57]} 4. d3 {[%clk 0:02:58]}  d6 {[%clk 0:02:54]} 5. g3 {[%clk 0:02:59]}  g6 {[%clk 0:02:53]} 6. Bg2 {[%clk 0:02:59]}  Bg7 {[%clk 0:02:54]} 7. O-O {[%clk 0:03:00]}  Nge7 {[%clk 0:02:53]} 8. Ne1 {[%clk 0:02:56]}  Be6 {[%clk 0:02:47]} 9. Nd5 {[%clk 0:02:52]}  O-O {[%clk 0:02:46]} 10. Nc2 {[%clk 0:02:52]}  Rb8 {[%clk 0:02:46]} 11. Nce3 {[%clk 0:02:52]}  f5 {[%clk 0:02:45]} 12. Nxe7+ {[%clk 0:02:52]}  Nxe7 {[%clk 0:02:45]} 13. Rb1 {[%clk 0:02:50]}  b5 {[%clk 0:02:45]} 14. Nd5 {[%clk 0:02:43]}  a5 {[%clk 0:01:38]} 15. Bg5 {[%clk 0:02:18]}  Bxd5 {[%clk 0:01:35]} 16. Bxd5+ {[%clk 0:02:12]}  Kh8 {[%clk 0:01:36]} 17. b3 {[%clk 0:01:06]}  h6 {[%clk 0:01:32]} 18. Bxe7 {[%clk 0:01:03]}  Qxe7 {[%clk 0:01:32]} 19. e3 {[%clk 0:00:53]}  f4 {[%clk 0:01:25]} 20. Qg4 {[%clk 0:00:40]}  Qg5 {[%clk 0:01:03]} 21. Qxg5 {[%clk 0:00:28]}  hxg5 {[%clk 0:01:04]} 22. Kg2 {[%clk 0:00:26]}  g4 {[%clk 0:00:55]} 23. exf4 {[%clk 0:00:23]}  exf4 {[%clk 0:00:54]} 24. f3 {[%clk 0:00:23]}  gxf3+ {[%clk 0:00:45]} 25. Rxf3 {[%clk 0:00:21]}  fxg3 {[%clk 0:00:38]} 26. Rxg3 {[%clk 0:00:20]}  Bd4 {[%clk 0:00:36]} 27. Rxg6 {[%clk 0:00:17]}  Rf2+ {[%clk 0:00:35]} 28. Kh3 {[%clk 0:00:16]}  Re8 {[%clk 0:00:16]} 29. Rbg1 {[%clk 0:00:15]}  Re3+ {[%clk 0:00:16]} 30. R1g3 {[%clk 0:00:16]}  Rxg3+ {[%clk 0:00:16]} 31. hxg3 {[%clk 0:00:16]}  bxc4 {[%clk 0:00:11]} 32. bxc4 {[%clk 0:00:15]}  Rxa2 {[%clk 0:00:10]} 33. Kg4 {[%clk 0:00:16]}  Rd2 {[%clk 0:00:08]} 34. Rxd6 {[%clk 0:00:15]}  Rxd3 {[%clk 0:00:08]} 35. Kh5 {[%clk 0:00:16]}  Rxg3 {[%clk 0:00:07]} 36. Rd8+ {[%clk 0:00:16]}  Kh7 {[%clk 0:00:07]} 37. Rd7+ {[%clk 0:00:16]}  Rg7 {[%clk 0:00:07]} 38. Rd6 {[%clk 0:00:16]}  Re7 {[%clk 0:00:03]} 39. Rh6+ {[%clk 0:00:15]}  Kg7 {[%clk 0:00:03]} 40. Rg6+ {[%clk 0:00:16]}  Kh7 {[%clk 0:00:03]} 41. Rh6+ {[%clk 0:00:16]}  Kg7 {[%clk 0:00:03]} 42. Re6 {[%clk 0:00:16]}  Rxe6 {[%clk 0:00:04]} 43. Bxe6 {[%clk 0:00:17]}  a4 {[%clk 0:00:04]} 44. Bf5 {[%clk 0:00:17]}  Kf6 {[%clk 0:00:04]} 45. Bc2 {[%clk 0:00:15]}  a3 {[%clk 0:00:05]} 46. Bb3 {[%clk 0:00:15]}  Bc3 {[%clk 0:00:05]} 47. Kg4 {[%clk 0:00:15]}  Ke5 {[%clk 0:00:05]} 48. Kf3 {[%clk 0:00:16]}  Kd4 {[%clk 0:00:06]} 49. Ke2 {[%clk 0:00:16]}  Bb4 {[%clk 0:00:06]} 50. Ba2 {[%clk 0:00:16]}  Kc3 {[%clk 0:00:06]} 51. Kd1 {[%clk 0:00:16]}  Kb2 {[%clk 0:00:07]} 52. Ke2 {[%clk 0:00:16]}  Kxa2 {[%clk 0:00:07]} 53. Kd3 {[%clk 0:00:16]}  Kb2 {[%clk 0:00:08]} 54. Ke4 {[%clk 0:00:17]}  a2 {[%clk 0:00:08]} 55. Kd5 {[%clk 0:00:15]}  a1=Q {[%clk 0:00:09]} 0-1


[Site "https://www.chess.com"]

[Event "Titled Tuesday Blitz May 30 Early 2023"]
[White "Guz, Ari"]
[Black "Andrew_Ledger"]
[WhiteFideId "2825759"]
[WhiteElo "2205"]
[BlackElo "2162"]
[Result "1-0"]
[Round "07"]
[TimeControl "180+2"]
[Date "2023.05.30"]
[WhiteClock "0:01:31"]
[BlackClock "0:00:07"]

1. a4 {[%clk 0:03:00]}  e5 {[%clk 0:02:59]} 2. a5 {[%clk 0:02:58]}  d5 {[%clk 0:02:59]} 3. e3 {[%clk 0:02:57]}  Nf6 {[%clk 0:02:59]} 4. a6 {[%clk 0:02:55]}  bxa6 {[%clk 0:02:56]} 5. d4 {[%clk 0:02:56]}  e4 {[%clk 0:02:55]} 6. c4 {[%clk 0:02:56]}  c6 {[%clk 0:02:55]} 7. Nc3 {[%clk 0:02:56]}  Bd6 {[%clk 0:02:54]} 8. Qb3 {[%clk 0:02:53]}  O-O {[%clk 0:02:52]} 9. Nge2 {[%clk 0:02:47]}  Be6 {[%clk 0:02:49]} 10. Qb7 {[%clk 0:02:43]}  Qc7 {[%clk 0:02:31]} 11. Qxa8 {[%clk 0:02:33]}  Nbd7 {[%clk 0:02:30]} 12. Qxf8+ {[%clk 0:02:34]}  Nxf8 {[%clk 0:02:24]} 13. c5 {[%clk 0:02:28]}  Be7 {[%clk 0:02:24]} 14. Nf4 {[%clk 0:02:28]}  g5 {[%clk 0:02:21]} 15. Nxe6 {[%clk 0:02:25]}  Nxe6 {[%clk 0:02:20]} 16. Bxa6 {[%clk 0:02:24]}  h5 {[%clk 0:02:11]} 17. Be2 {[%clk 0:02:16]}  Kg7 {[%clk 0:02:03]} 18. b4 {[%clk 0:02:14]}  g4 {[%clk 0:01:43]} 19. b5 {[%clk 0:02:05]}  Ng5 {[%clk 0:00:56]} 20. Ra6 {[%clk 0:01:59]}  cxb5 {[%clk 0:00:51]} 21. Nxb5 {[%clk 0:02:00]}  Qb7 {[%clk 0:00:50]} 22. Rxa7 {[%clk 0:01:56]}  Qb8 {[%clk 0:00:39]} 23. Rxe7 {[%clk 0:01:53]}  Nf3+ {[%clk 0:00:37]} 24. gxf3 {[%clk 0:01:48]}  exf3 {[%clk 0:00:34]} 25. Bd3 {[%clk 0:01:46]}  Ne4 {[%clk 0:00:34]} 26. O-O {[%clk 0:01:39]}  Ng5 {[%clk 0:00:17]} 27. c6 {[%clk 0:01:34]}  h4 {[%clk 0:00:16]} 28. c7 {[%clk 0:01:32]}  Qc8 {[%clk 0:00:07]} 29. Nd6 {[%clk 0:01:31]} 1-0


[Site "https://www.chess.com"]

[Event "Titled Tuesday Blitz May 30 Early 2023"]
[White "Brown, Raehanna"]
[Black "Herzog2012"]
[WhiteFideId "7402740"]
[WhiteElo "1655"]
[BlackElo "2392"]
[Result "0-1"]
[Round "07"]
[TimeControl "180+2"]
[Date "2023.05.30"]
[WhiteClock "0:00:00"]
[BlackClock "0:00:31"]

1. c4 {[%clk 0:02:56]}  e5 {[%clk 0:02:56]} 2. Nc3 {[%clk 0:02:55]}  Nf6 {[%clk 0:02:56]} 3. Nf3 {[%clk 0:02:54]}  Nc6 {[%clk 0:02:56]} 4. g3 {[%clk 0:02:53]}  d5 {[%clk 0:02:55]} 5. cxd5 {[%clk 0:02:53]}  Nxd5 {[%clk 0:02:56]} 6. Bg2 {[%clk 0:02:54]}  Nb6 {[%clk 0:02:53]} 7. O-O {[%clk 0:02:52]}  Be7 {[%clk 0:02:49]} 8. d3 {[%clk 0:02:47]}  O-O {[%clk 0:02:48]} 9. Be3 {[%clk 0:02:47]}  Be6 {[%clk 0:02:28]} 10. Rc1 {[%clk 0:02:37]}  f6 {[%clk 0:02:20]} 11. Ne4 {[%clk 0:02:12]}  Nd4 {[%clk 0:02:13]} 12. Bxd4 {[%clk 0:02:07]}  exd4 {[%clk 0:02:14]} 13. Nc5 {[%clk 0:02:03]}  Bd5 {[%clk 0:01:53]} 14. a3 {[%clk 0:01:18]}  Bxc5 {[%clk 0:01:35]} 15. Rxc5 {[%clk 0:01:17]}  Qd6 {[%clk 0:01:26]} 16. Qc2 {[%clk 0:01:11]}  c6 {[%clk 0:01:17]} 17. Qc1 {[%clk 0:00:55]}  Bb3 {[%clk 0:01:05]} 18. Nd2 {[%clk 0:00:52]}  Bf7 {[%clk 0:01:01]} 19. b4 {[%clk 0:00:36]}  Rfe8 {[%clk 0:00:52]} 20. Ne4 {[%clk 0:00:36]}  Qe7 {[%clk 0:00:47]} 21. Bh3 {[%clk 0:00:21]}  Bd5 {[%clk 0:00:44]} 22. f3 {[%clk 0:00:17]}  f5 {[%clk 0:00:43]} 23. Bxf5 {[%clk 0:00:14]}  g6 {[%clk 0:00:43]} 24. Bh3 {[%clk 0:00:14]}  Na4 {[%clk 0:00:42]} 25. Rc2 {[%clk 0:00:14]}  Bxe4 {[%clk 0:00:42]} 26. fxe4 {[%clk 0:00:14]}  Nc3 {[%clk 0:00:43]} 27. e3 {[%clk 0:00:12]}  Qe5 {[%clk 0:00:42]} 28. exd4 {[%clk 0:00:11]}  Qxd4+ {[%clk 0:00:43]} 29. Rff2 {[%clk 0:00:11]}  Rf8 {[%clk 0:00:40]} 30. Kg2 {[%clk 0:00:10]}  Rxf2+ {[%clk 0:00:32]} 31. Rxf2 {[%clk 0:00:11]}  Qxd3 {[%clk 0:00:31]} 32. Be6+ {[%clk 0:00:10]}  Kh8 {[%clk 0:00:23]} 33. Rf3 {[%clk 0:00:10]}  Qe2+ {[%clk 0:00:22]} 34. Kh3 {[%clk 0:00:09]}  Qxf3 {[%clk 0:00:22]} 35. Bg4 {[%clk 0:00:09]}  Qf6 {[%clk 0:00:21]} 36. Kg2 {[%clk 0:00:07]}  Nxe4 {[%clk 0:00:20]} 37. Qe3 {[%clk 0:00:07]}  Qf2+ {[%clk 0:00:19]} 38. Qxf2 {[%clk 0:00:06]}  Nxf2 {[%clk 0:00:20]} 39. Kxf2 {[%clk 0:00:07]}  a5 {[%clk 0:00:21]} 40. Bf3 {[%clk 0:00:05]}  axb4 {[%clk 0:00:21]} 41. axb4 {[%clk 0:00:06]}  Ra4 {[%clk 0:00:21]} 42. b5 {[%clk 0:00:05]}  cxb5 {[%clk 0:00:21]} 43. Bxb7 {[%clk 0:00:05]}  b4 {[%clk 0:00:22]} 44. Bd5 {[%clk 0:00:05]}  Ra3 {[%clk 0:00:22]} 45. Ke2 {[%clk 0:00:04]}  b3 {[%clk 0:00:23]} 46. Kd2 {[%clk 0:00:04]}  Ra2+ {[%clk 0:00:20]} 47. Kc3 {[%clk 0:00:04]}  Rxh2 {[%clk 0:00:21]} 48. Kxb3 {[%clk 0:00:04]}  Rh3 {[%clk 0:00:22]} 49. Kc4 {[%clk 0:00:03]}  Rxg3 {[%clk 0:00:23]} 50. Kd4 {[%clk 0:00:03]}  h5 {[%clk 0:00:24]} 51. Ke4 {[%clk 0:00:04]}  h4 {[%clk 0:00:25]} 52. Kf4 {[%clk 0:00:04]}  g5+ {[%clk 0:00:25]} 53. Kf5 {[%clk 0:00:03]}  Kg7 {[%clk 0:00:26]} 54. Bh1 {[%clk 0:00:03]}  Kh6 {[%clk 0:00:27]} 55. Be4 {[%clk 0:00:02]}  h3 {[%clk 0:00:28]} 56. Kf6 {[%clk 0:00:01]}  h2 {[%clk 0:00:29]} 57. Kf5 {[%clk 0:00:01]}  Rg1 {[%clk 0:00:30]} 58. Kf6 {[%clk 0:00:00]}  h1=Q {[%clk 0:00:31]} 0-1


[Site "https://www.chess.com"]

[Event "Titled Tuesday Blitz May 30 Early 2023"]
[White "Fudalej, Michal"]
[Black "Dominguez Rincon, Miller Duvan"]
[WhiteFideId "1118781"]
[BlackFideId "4406583"]
[WhiteElo "2088"]
[BlackElo "2013"]
[Result "0-1"]
[Round "07"]
[TimeControl "180+2"]
[Date "2023.05.30"]
[WhiteClock "0:00:00"]
[BlackClock "0:00:09"]

1. Nf3 {[%clk 0:02:14]}  Nf6 {[%clk 0:02:59]} 2. g3 {[%clk 0:02:14]}  d5 {[%clk 0:02:58]} 3. Bg2 {[%clk 0:02:12]}  e6 {[%clk 0:02:58]} 4. b3 {[%clk 0:02:12]}  Be7 {[%clk 0:02:57]} 5. Bb2 {[%clk 0:02:13]}  O-O {[%clk 0:02:58]} 6. c4 {[%clk 0:02:13]}  c6 {[%clk 0:02:57]} 7. O-O {[%clk 0:02:12]}  b6 {[%clk 0:02:57]} 8. e3 {[%clk 0:02:10]}  Bb7 {[%clk 0:02:57]} 9. Nc3 {[%clk 0:02:10]}  Nbd7 {[%clk 0:02:57]} 10. d3 {[%clk 0:02:10]}  a5 {[%clk 0:02:57]} 11. a3 {[%clk 0:02:09]}  Qc7 {[%clk 0:02:56]} 12. Qc2 {[%clk 0:02:08]}  Rac8 {[%clk 0:02:56]} 13. Rac1 {[%clk 0:02:07]}  Rfd8 {[%clk 0:02:55]} 14. Rfd1 {[%clk 0:02:07]}  Qb8 {[%clk 0:02:55]} 15. Ne2 {[%clk 0:02:05]}  c5 {[%clk 0:02:45]} 16. Nf4 {[%clk 0:01:54]}  Qa8 {[%clk 0:02:35]} 17. Ne1 {[%clk 0:01:45]}  Bc6 {[%clk 0:02:22]} 18. Qe2 {[%clk 0:01:28]}  a4 {[%clk 0:02:20]} 19. bxa4 {[%clk 0:01:19]}  Bxa4 {[%clk 0:02:21]} 20. Rd2 {[%clk 0:01:09]}  Bc6 {[%clk 0:02:13]} 21. cxd5 {[%clk 0:00:57]}  exd5 {[%clk 0:02:12]} 22. h4 {[%clk 0:00:39]}  Bd6 {[%clk 0:02:01]} 23. Nh3 {[%clk 0:00:35]}  Be5 {[%clk 0:01:57]} 24. h5 {[%clk 0:00:29]}  Bxb2 {[%clk 0:01:55]} 25. Rxb2 {[%clk 0:00:28]}  Qxa3 {[%clk 0:01:55]} 26. h6 {[%clk 0:00:27]}  g6 {[%clk 0:01:50]} 27. Ng5 {[%clk 0:00:24]}  Qa4 {[%clk 0:01:39]} 28. Rcb1 {[%clk 0:00:20]}  Qg4 {[%clk 0:01:37]} 29. Nef3 {[%clk 0:00:15]}  d4 {[%clk 0:01:28]} 30. e4 {[%clk 0:00:15]}  Qh5 {[%clk 0:01:14]} 31. Bh3 {[%clk 0:00:15]}  Qxh6 {[%clk 0:01:11]} 32. Kg2 {[%clk 0:00:15]}  b5 {[%clk 0:00:48]} 33. Rh1 {[%clk 0:00:14]}  Qg7 {[%clk 0:00:46]} 34. Bxd7 {[%clk 0:00:14]}  Rxd7 {[%clk 0:00:38]} 35. e5 {[%clk 0:00:11]}  Nh5 {[%clk 0:00:37]} 36. Kg1 {[%clk 0:00:07]}  Re7 {[%clk 0:00:35]} 37. Ne4 {[%clk 0:00:06]}  Bxe4 {[%clk 0:00:29]} 38. Qxe4 {[%clk 0:00:07]}  Rb8 {[%clk 0:00:24]} 39. Kg2 {[%clk 0:00:07]}  Qf8 {[%clk 0:00:23]} 40. Rhb1 {[%clk 0:00:06]}  Qe8 {[%clk 0:00:23]} 41. Qd5 {[%clk 0:00:06]}  Rc7 {[%clk 0:00:20]} 42. Re2 {[%clk 0:00:05]}  Ng7 {[%clk 0:00:20]} 43. Ng5 {[%clk 0:00:04]}  Ne6 {[%clk 0:00:20]} 44. Ne4 {[%clk 0:00:04]}  Kg7 {[%clk 0:00:19]} 45. Nd6 {[%clk 0:00:04]}  Qd7 {[%clk 0:00:18]} 46. Qf3 {[%clk 0:00:03]}  Qc6 {[%clk 0:00:17]} 47. Re4 {[%clk 0:00:02]}  Ng5 {[%clk 0:00:17]} 48. Qf6+ {[%clk 0:00:01]}  Kg8 {[%clk 0:00:14]} 49. Qxg5 {[%clk 0:00:02]}  c4 {[%clk 0:00:13]} 50. Rh1 {[%clk 0:00:02]}  cxd3 {[%clk 0:00:11]} 51. Qh6 {[%clk 0:00:02]}  f5 {[%clk 0:00:10]} 52. exf6 {[%clk 0:00:01]}  Qxd6 {[%clk 0:00:09]} 53. f7+ {[%clk 0:00:02]}  Rxf7 {[%clk 0:00:09]} 54. Qg5 {[%clk 0:00:02]}  Qc6 {[%clk 0:00:08]} 55. Qe5 {[%clk 0:00:01]}  Rbf8 {[%clk 0:00:08]} 56. Qxd4 {[%clk 0:00:02]}  Rxf2+ {[%clk 0:00:08]} 57. Qxf2 {[%clk 0:00:01]}  Rxf2+ {[%clk 0:00:09]} 58. Kxf2 {[%clk 0:00:00]}  Qxe4 {[%clk 0:00:09]} 0-1


[Site "https://www.chess.com"]

[Event "Titled Tuesday Blitz May 30 Early 2023"]
[White "Larina, Maria"]
[Black "Castillo Pena, Patricia Evarista"]
[WhiteFideId "24113182"]
[BlackFideId "6412106"]
[WhiteElo "1848"]
[BlackElo "1919"]
[Result "1-0"]
[Round "07"]
[TimeControl "180+2"]
[Date "2023.05.30"]
[WhiteClock "0:01:16"]
[BlackClock "0:00:00"]

1. e4 {[%clk 0:03:00]}  c5 {[%clk 0:02:59]} 2. Nc3 {[%clk 0:03:00]}  Nc6 {[%clk 0:02:59]} 3. g3 {[%clk 0:02:59]}  g6 {[%clk 0:02:59]} 4. Bg2 {[%clk 0:03:00]}  Bg7 {[%clk 0:02:59]} 5. d3 {[%clk 0:03:00]}  d6 {[%clk 0:03:00]} 6. Be3 {[%clk 0:02:59]}  Nf6 {[%clk 0:02:59]} 7. f4 {[%clk 0:02:49]}  O-O {[%clk 0:02:53]} 8. Nf3 {[%clk 0:02:46]}  Rb8 {[%clk 0:02:44]} 9. h3 {[%clk 0:02:42]}  b5 {[%clk 0:02:42]} 10. O-O {[%clk 0:02:30]}  b4 {[%clk 0:02:42]} 11. Ne2 {[%clk 0:02:30]}  a5 {[%clk 0:02:41]} 12. g4 {[%clk 0:02:29]}  Qc7 {[%clk 0:02:25]} 13. a3 {[%clk 0:02:28]}  bxa3 {[%clk 0:02:10]} 14. bxa3 {[%clk 0:02:27]}  Nd7 {[%clk 0:01:57]} 15. Rb1 {[%clk 0:02:20]}  Ba6 {[%clk 0:01:48]} 16. Qd2 {[%clk 0:02:18]}  c4 {[%clk 0:01:39]} 17. d4 {[%clk 0:02:15]}  e5 {[%clk 0:01:23]} 18. fxe5 {[%clk 0:02:13]}  dxe5 {[%clk 0:01:22]} 19. d5 {[%clk 0:02:08]}  Nd4 {[%clk 0:01:16]} 20. Nfxd4 {[%clk 0:02:05]}  exd4 {[%clk 0:01:16]} 21. Bxd4 {[%clk 0:02:05]}  Bxd4+ {[%clk 0:01:12]} 22. Qxd4 {[%clk 0:02:05]}  Qc5 {[%clk 0:01:11]} 23. Qxc5 {[%clk 0:02:04]}  Nxc5 {[%clk 0:01:11]} 24. Nc3 {[%clk 0:01:59]}  Rfe8 {[%clk 0:00:56]} 25. Rfe1 {[%clk 0:01:52]}  Kg7 {[%clk 0:00:51]} 26. Kf2 {[%clk 0:01:49]}  Kf6 {[%clk 0:00:47]} 27. Rxb8 {[%clk 0:01:40]}  Rxb8 {[%clk 0:00:46]} 28. e5+ {[%clk 0:01:41]}  Ke7 {[%clk 0:00:43]} 29. d6+ {[%clk 0:01:40]}  Kd7 {[%clk 0:00:37]} 30. Bd5 {[%clk 0:01:29]}  Ne6 {[%clk 0:00:26]} 31. Ne4 {[%clk 0:01:22]}  Rb2 {[%clk 0:00:19]} 32. Bxe6+ {[%clk 0:01:18]}  Kxe6 {[%clk 0:00:17]} 33. Nc5+ {[%clk 0:01:18]}  Kd5 {[%clk 0:00:09]} 34. Nxa6 {[%clk 0:01:18]}  Rxc2+ {[%clk 0:00:08]} 35. Re2 {[%clk 0:01:17]}  Rxe2+ {[%clk 0:00:06]} 36. Kxe2 {[%clk 0:01:17]}  Kc6 {[%clk 0:00:00]} 37. Kd2 {[%clk 0:01:16]} 1-0


[Site "https://www.chess.com"]

[Event "Titled Tuesday Blitz May 30 Early 2023"]
[White "Borodavkin, Anatoly"]
[Black "Sanchez, Robert"]
[WhiteFideId "14150662"]
[BlackFideId "2034360"]
[WhiteElo "1991"]
[BlackElo "1824"]
[Result "1-0"]
[Round "07"]
[TimeControl "180+2"]
[Date "2023.05.30"]
[WhiteClock "0:00:10"]
[BlackClock "0:00:56"]

1. e4 {[%clk 0:03:00]}  e6 {[%clk 0:02:59]} 2. d4 {[%clk 0:03:00]}  d5 {[%clk 0:02:59]} 3. Nc3 {[%clk 0:03:00]}  Nf6 {[%clk 0:02:59]} 4. exd5 {[%clk 0:03:00]}  exd5 {[%clk 0:02:58]} 5. Bd3 {[%clk 0:03:00]}  Bb4 {[%clk 0:02:58]} 6. Ne2 {[%clk 0:02:55]}  Bg4 {[%clk 0:02:57]} 7. O-O {[%clk 0:02:53]}  Bxc3 {[%clk 0:02:55]} 8. bxc3 {[%clk 0:02:52]}  O-O {[%clk 0:02:56]} 9. f3 {[%clk 0:02:52]}  Bh5 {[%clk 0:02:55]} 10. Nf4 {[%clk 0:02:52]}  Bg6 {[%clk 0:02:55]} 11. Nxg6 {[%clk 0:02:52]}  hxg6 {[%clk 0:02:56]} 12. c4 {[%clk 0:02:48]}  dxc4 {[%clk 0:02:52]} 13. Bxc4 {[%clk 0:02:48]}  Nc6 {[%clk 0:02:53]} 14. c3 {[%clk 0:02:47]}  Re8 {[%clk 0:02:53]} 15. Qb3 {[%clk 0:02:37]}  Re7 {[%clk 0:02:47]} 16. Ba3 {[%clk 0:02:26]}  Na5 {[%clk 0:02:45]} 17. Qb4 {[%clk 0:02:15]}  c5 {[%clk 0:02:23]} 18. Qxc5 {[%clk 0:02:08]}  Rc7 {[%clk 0:02:21]} 19. Qxa5 {[%clk 0:02:07]}  Rxc4 {[%clk 0:02:21]} 20. Qxd8+ {[%clk 0:01:56]}  Rxd8 {[%clk 0:02:20]} 21. Be7 {[%clk 0:01:36]}  Rdc8 {[%clk 0:02:15]} 22. Bxf6 {[%clk 0:01:24]}  gxf6 {[%clk 0:02:14]} 23. Rab1 {[%clk 0:01:25]}  b6 {[%clk 0:02:14]} 24. Rfe1 {[%clk 0:01:24]}  Kf8 {[%clk 0:02:13]} 25. Re2 {[%clk 0:01:02]}  Rxc3 {[%clk 0:02:11]} 26. Kf2 {[%clk 0:01:01]}  Rd3 {[%clk 0:02:08]} 27. Rb4 {[%clk 0:01:00]}  Rd8 {[%clk 0:01:56]} 28. Ra4 {[%clk 0:00:54]}  Rd7 {[%clk 0:01:55]} 29. Re4 {[%clk 0:00:50]}  f5 {[%clk 0:01:53]} 30. Rh4 {[%clk 0:00:50]}  Kg7 {[%clk 0:01:48]} 31. Ke2 {[%clk 0:00:45]}  Rc3 {[%clk 0:01:40]} 32. Kd2 {[%clk 0:00:43]}  Rc6 {[%clk 0:01:35]} 33. g4 {[%clk 0:00:42]}  f4 {[%clk 0:01:23]} 34. g5 {[%clk 0:00:41]}  b5 {[%clk 0:01:19]} 35. Rb4 {[%clk 0:00:39]}  a5 {[%clk 0:01:19]} 36. Rxb5 {[%clk 0:00:37]}  Rxd4+ {[%clk 0:01:19]} 37. Ke2 {[%clk 0:00:34]}  Rc2+ {[%clk 0:01:19]} 38. Ke1 {[%clk 0:00:33]}  Rxa2 {[%clk 0:01:19]} 39. Rb8 {[%clk 0:00:20]}  Rg2 {[%clk 0:01:09]} 40. Rhh8 {[%clk 0:00:17]}  Rxg5 {[%clk 0:01:08]} 41. Rhg8+ {[%clk 0:00:17]}  Kf6 {[%clk 0:01:08]} 42. Rb6+ {[%clk 0:00:17]}  Ke7 {[%clk 0:01:06]} 43. Rb7+ {[%clk 0:00:17]}  Rd7 {[%clk 0:01:06]} 44. Rbb8 {[%clk 0:00:16]}  Re5+ {[%clk 0:01:01]} 45. Kf2 {[%clk 0:00:15]}  Ra7 {[%clk 0:00:59]} 46. Rge8+ {[%clk 0:00:14]}  Kf6 {[%clk 0:00:57]} 47. Rb6+ {[%clk 0:00:10]}  Kf5 {[%clk 0:00:56]} 1-0


[Site "https://www.chess.com"]

[Event "Titled Tuesday Blitz May 30 Early 2023"]
[White "Mirzanurov, Bulat"]
[Black "Floresvillar Gonzalez, Luis Migu"]
[WhiteFideId "4184521"]
[BlackFideId "5100542"]
[WhiteElo "2005"]
[BlackElo "2040"]
[Result "0-1"]
[Round "07"]
[TimeControl "180+2"]
[Date "2023.05.30"]
[WhiteClock "0:00:00"]
[BlackClock "0:00:02"]

1. e4 {[%clk 0:03:00]}  c6 {[%clk 0:02:54]} 2. d4 {[%clk 0:02:59]}  d5 {[%clk 0:02:55]} 3. exd5 {[%clk 0:02:56]}  cxd5 {[%clk 0:02:54]} 4. Nf3 {[%clk 0:02:56]}  Nf6 {[%clk 0:02:54]} 5. Ne5 {[%clk 0:02:51]}  Nbd7 {[%clk 0:02:49]} 6. Bd3 {[%clk 0:02:43]}  e6 {[%clk 0:02:49]} 7. O-O {[%clk 0:02:39]}  Qb6 {[%clk 0:02:42]} 8. c3 {[%clk 0:02:33]}  Bd6 {[%clk 0:02:37]} 9. Re1 {[%clk 0:02:31]}  O-O {[%clk 0:02:34]} 10. Nd2 {[%clk 0:02:30]}  a5 {[%clk 0:02:16]} 11. Ndf3 {[%clk 0:02:28]}  a4 {[%clk 0:02:14]} 12. Ng5 {[%clk 0:02:08]}  a3 {[%clk 0:02:01]} 13. b3 {[%clk 0:01:47]}  Qc7 {[%clk 0:02:00]} 14. Qe2 {[%clk 0:00:51]}  Qxc3 {[%clk 0:01:51]} 15. Nexf7 {[%clk 0:00:42]}  Rxf7 {[%clk 0:01:04]} 16. Nxf7 {[%clk 0:00:24]}  Ne4 {[%clk 0:00:22]} 17. Nxd6 {[%clk 0:00:18]}  Qxa1 {[%clk 0:00:20]} 18. Nxe4 {[%clk 0:00:15]}  dxe4 {[%clk 0:00:20]} 19. Qxe4 {[%clk 0:00:14]}  Nf6 {[%clk 0:00:18]} 20. Qh4 {[%clk 0:00:03]}  Qxa2 {[%clk 0:00:15]} 21. Bg5 {[%clk 0:00:01]}  Bd7 {[%clk 0:00:10]} 22. Bxf6 {[%clk 0:00:01]}  gxf6 {[%clk 0:00:04]} 23. Qxh7+ {[%clk 0:00:00]}  Kf8 {[%clk 0:00:02]} 0-1


[Site "https://www.chess.com"]